[Event "Titled Tuesday Blitz July 05 Late 2022"]
[White "Fedoseev, Vladimir"]
[Black "Andreikin, Dmitry"]
[WhiteFideId "24130737"]
[BlackFideId "4158814"]
[WhiteElo "2726"]
[BlackElo "2736"]
[Result "0-1"]
[Round "10"]
[TimeControl "180+1"]
[Date "2022.07.05"]
[WhiteClock "0:00:07"]
[BlackClock "0:00:14"]

1. e4 {[%clk 0:02:58]}  c5 {[%clk 0:02:59]} 2. Nf3 {[%clk 0:02:58]}  e6 {[%clk 0:02:59]} 3. d4 {[%clk 0:02:59]}  cxd4 {[%clk 0:03:00]} 4. Nxd4 {[%clk 0:02:59]}  Nc6 {[%clk 0:03:01]} 5. Nc3 {[%clk 0:02:59]}  a6 {[%clk 0:03:01]} 6. Qd3 {[%clk 0:02:59]}  Nxd4 {[%clk 0:02:53]} 7. Qxd4 {[%clk 0:02:58]}  Ne7 {[%clk 0:02:54]} 8. Bf4 {[%clk 0:02:49]}  Nc6 {[%clk 0:02:54]} 9. Qd2 {[%clk 0:02:47]}  b5 {[%clk 0:02:53]} 10. a3 {[%clk 0:02:32]}  Bb7 {[%clk 0:02:48]} 11. Be2 {[%clk 0:02:32]}  Bc5 {[%clk 0:02:41]} 12. Bd6 {[%clk 0:02:17]}  Bxd6 {[%clk 0:02:27]} 13. Qxd6 {[%clk 0:02:17]}  Qb8 {[%clk 0:02:24]} 14. Qd2 {[%clk 0:02:10]}  O-O {[%clk 0:02:24]} 15. Rd1 {[%clk 0:02:08]}  Rc8 {[%clk 0:02:15]} 16. O-O {[%clk 0:02:08]}  Ne5 {[%clk 0:02:15]} 17. f4 {[%clk 0:02:01]}  Nc4 {[%clk 0:02:14]} 18. Bxc4 {[%clk 0:02:01]}  bxc4 {[%clk 0:02:06]} 19. Qxd7 {[%clk 0:01:56]}  Bc6 {[%clk 0:02:05]} 20. Qd4 {[%clk 0:01:49]}  Qxb2 {[%clk 0:02:02]} 21. f5 {[%clk 0:01:31]}  exf5 {[%clk 0:01:50]} 22. Rxf5 {[%clk 0:01:19]}  Qxc2 {[%clk 0:01:47]} 23. Rdf1 {[%clk 0:01:06]}  Qd3 {[%clk 0:01:15]} 24. Qxd3 {[%clk 0:01:02]}  cxd3 {[%clk 0:01:15]} 25. Rd1 {[%clk 0:01:02]}  Bd7 {[%clk 0:01:08]} 26. Rd5 {[%clk 0:00:59]}  Rxc3 {[%clk 0:01:07]} 27. Rxd7 {[%clk 0:00:58]}  Rxa3 {[%clk 0:01:07]} 28. e5 {[%clk 0:00:54]}  h6 {[%clk 0:00:43]} 29. Rb1 {[%clk 0:00:44]}  Re8 {[%clk 0:00:39]} 30. Rbb7 {[%clk 0:00:19]}  Rxe5 {[%clk 0:00:36]} 31. Rxf7 {[%clk 0:00:18]}  d2 {[%clk 0:00:20]} 32. Rxg7+ {[%clk 0:00:12]}  Kf8 {[%clk 0:00:20]} 33. Rgf7+ {[%clk 0:00:07]}  Ke8 {[%clk 0:00:21]} 34. Rf1 {[%clk 0:00:07]}  Re1 {[%clk 0:00:19]} 35. Rb1 {[%clk 0:00:07]}  Rxb1 {[%clk 0:00:16]} 36. Rxb1 {[%clk 0:00:07]}  Rc3 {[%clk 0:00:14]} 0-1


[Site "https://www.chess.com"]

[Event "Titled Tuesday Blitz July 05 Late 2022"]
[White "Kamsky, Gata"]
[Black "Iliaguev, Nisim"]
[WhiteFideId "2000024"]
[BlackFideId "2817276"]
[WhiteElo "2645"]
[BlackElo "2107"]
[Result "0-1"]
[Round "10"]
[TimeControl "180+1"]
[Date "2022.07.05"]
[WhiteClock "0:00:02"]
[BlackClock "0:00:21"]

1. e4 {[%clk 0:03:00]}  c6 {[%clk 0:02:58]} 2. Nf3 {[%clk 0:02:59]}  d5 {[%clk 0:02:58]} 3. d3 {[%clk 0:02:59]}  g6 {[%clk 0:02:58]} 4. e5 {[%clk 0:02:58]}  Bg7 {[%clk 0:02:57]} 5. d4 {[%clk 0:02:58]}  c5 {[%clk 0:02:45]} 6. c3 {[%clk 0:02:53]}  Nc6 {[%clk 0:02:45]} 7. h3 {[%clk 0:02:52]}  Bf5 {[%clk 0:02:41]} 8. dxc5 {[%clk 0:02:40]}  Be4 {[%clk 0:02:31]} 9. Nbd2 {[%clk 0:02:38]}  e6 {[%clk 0:02:27]} 10. Bb5 {[%clk 0:02:35]}  Ne7 {[%clk 0:02:22]} 11. Nxe4 {[%clk 0:02:34]}  dxe4 {[%clk 0:02:22]} 12. Qxd8+ {[%clk 0:02:34]}  Rxd8 {[%clk 0:02:19]} 13. Ng5 {[%clk 0:02:34]}  a6 {[%clk 0:02:09]} 14. Bxc6+ {[%clk 0:02:28]}  Nxc6 {[%clk 0:02:10]} 15. Nxe4 {[%clk 0:02:27]}  Nxe5 {[%clk 0:02:02]} 16. Bg5 {[%clk 0:02:10]}  Rd5 {[%clk 0:01:55]} 17. Ke2 {[%clk 0:02:08]}  O-O {[%clk 0:01:49]} 18. Rhd1 {[%clk 0:02:04]}  Nc4 {[%clk 0:01:40]} 19. b3 {[%clk 0:01:53]}  Re5 {[%clk 0:01:38]} 20. Kf3 {[%clk 0:01:34]}  Rf5+ {[%clk 0:01:39]} 21. Kg3 {[%clk 0:01:32]}  Re5 {[%clk 0:01:28]} 22. f3 {[%clk 0:01:31]}  Nb2 {[%clk 0:01:20]} 23. Rd7 {[%clk 0:01:28]}  f5 {[%clk 0:01:17]} 24. Nd6 {[%clk 0:00:54]}  Nd3 {[%clk 0:01:14]} 25. Be7 {[%clk 0:00:52]}  Nxc5 {[%clk 0:01:07]} 26. Rc7 {[%clk 0:00:52]}  Rb8 {[%clk 0:00:59]} 27. Nc4 {[%clk 0:00:47]}  b5 {[%clk 0:00:57]} 28. Bd6 {[%clk 0:00:41]}  Rd5 {[%clk 0:00:50]} 29. Rxg7+ {[%clk 0:00:38]}  Kxg7 {[%clk 0:00:48]} 30. Bxb8 {[%clk 0:00:38]}  bxc4 {[%clk 0:00:48]} 31. bxc4 {[%clk 0:00:39]}  Rd2 {[%clk 0:00:46]} 32. Be5+ {[%clk 0:00:38]}  Kf7 {[%clk 0:00:42]} 33. Rb1 {[%clk 0:00:37]}  g5 {[%clk 0:00:40]} 34. h4 {[%clk 0:00:35]}  h6 {[%clk 0:00:39]} 35. h5 {[%clk 0:00:33]}  Nd3 {[%clk 0:00:36]} 36. Bd6 {[%clk 0:00:25]}  e5 {[%clk 0:00:34]} 37. c5 {[%clk 0:00:23]}  Nf4 {[%clk 0:00:31]} 38. Kh2 {[%clk 0:00:16]}  Ke6 {[%clk 0:00:29]} 39. Kh1 {[%clk 0:00:13]}  Nxg2 {[%clk 0:00:27]} 40. Bb8 {[%clk 0:00:09]}  Nh4 {[%clk 0:00:25]} 41. Rf1 {[%clk 0:00:08]}  g4 {[%clk 0:00:22]} 42. fxg4 {[%clk 0:00:07]}  fxg4 {[%clk 0:00:22]} 43. Rg1 {[%clk 0:00:02]}  Nf3 {[%clk 0:00:21]} 0-1


[Site "https://www.chess.com"]

[Event "Titled Tuesday Blitz July 05 Late 2022"]
[White "Khan, Taffin"]
[Black "Kubatko, Ivan"]
[WhiteFideId "19700024"]
[BlackFideId "24111473"]
[WhiteElo "2199"]
[BlackElo "2285"]
[Result "1-0"]
[Round "10"]
[TimeControl "180+1"]
[Date "2022.07.06"]
[WhiteClock "0:00:13"]
[BlackClock "0:00:03"]

1. e4 {[%clk 0:02:59]}  c5 {[%clk 0:02:59]} 2. Nf3 {[%clk 0:02:58]}  d6 {[%clk 0:02:59]} 3. c3 {[%clk 0:02:56]}  Nf6 {[%clk 0:02:58]} 4. Bc4 {[%clk 0:02:56]}  e6 {[%clk 0:02:48]} 5. Qe2 {[%clk 0:02:52]}  Be7 {[%clk 0:02:47]} 6. d3 {[%clk 0:02:51]}  O-O {[%clk 0:02:46]} 7. O-O {[%clk 0:02:51]}  d5 {[%clk 0:02:47]} 8. Bb3 {[%clk 0:02:48]}  Nc6 {[%clk 0:02:47]} 9. e5 {[%clk 0:02:43]}  Nd7 {[%clk 0:02:46]} 10. d4 {[%clk 0:02:43]}  a5 {[%clk 0:02:32]} 11. a3 {[%clk 0:02:39]}  a4 {[%clk 0:02:29]} 12. Bc2 {[%clk 0:02:39]}  b6 {[%clk 0:02:29]} 13. Re1 {[%clk 0:02:36]}  Ba6 {[%clk 0:02:28]} 14. Qe3 {[%clk 0:02:33]}  Rc8 {[%clk 0:02:24]} 15. Nbd2 {[%clk 0:02:27]}  cxd4 {[%clk 0:01:59]} 16. Nxd4 {[%clk 0:02:26]}  Nxd4 {[%clk 0:01:56]} 17. Qxd4 {[%clk 0:02:25]}  b5 {[%clk 0:01:43]} 18. Qd3 {[%clk 0:02:16]}  g6 {[%clk 0:01:41]} 19. Nf3 {[%clk 0:02:13]}  Nc5 {[%clk 0:01:38]} 20. Qe3 {[%clk 0:02:08]}  Bb7 {[%clk 0:01:21]} 21. Qh6 {[%clk 0:02:06]}  f5 {[%clk 0:01:05]} 22. exf6 {[%clk 0:01:32]}  Rxf6 {[%clk 0:01:04]} 23. Ng5 {[%clk 0:01:28]}  Rf7 {[%clk 0:00:56]} 24. Nxf7 {[%clk 0:01:27]}  Kxf7 {[%clk 0:00:57]} 25. Qxh7+ {[%clk 0:01:26]}  Ke8 {[%clk 0:00:57]} 26. Bxg6+ {[%clk 0:01:24]}  Kd7 {[%clk 0:00:58]} 27. Bg5 {[%clk 0:01:23]}  Kd6 {[%clk 0:00:53]} 28. Bxe7+ {[%clk 0:01:06]}  Qxe7 {[%clk 0:00:54]} 29. Qxe7+ {[%clk 0:01:03]}  Kxe7 {[%clk 0:00:55]} 30. h4 {[%clk 0:01:02]}  Kf6 {[%clk 0:00:52]} 31. h5 {[%clk 0:01:02]}  e5 {[%clk 0:00:51]} 32. Rad1 {[%clk 0:01:00]}  Rd8 {[%clk 0:00:51]} 33. Re3 {[%clk 0:00:59]}  d4 {[%clk 0:00:50]} 34. cxd4 {[%clk 0:00:57]}  exd4 {[%clk 0:00:51]} 35. Rg3 {[%clk 0:00:54]}  Be4 {[%clk 0:00:31]} 36. Bxe4 {[%clk 0:00:52]}  Nxe4 {[%clk 0:00:32]} 37. Rgd3 {[%clk 0:00:51]}  Ke5 {[%clk 0:00:32]} 38. f3 {[%clk 0:00:44]}  Nc5 {[%clk 0:00:32]} 39. R3d2 {[%clk 0:00:43]}  Nb3 {[%clk 0:00:26]} 40. Re2+ {[%clk 0:00:41]}  Kd5 {[%clk 0:00:23]} 41. g4 {[%clk 0:00:40]}  Kc4 {[%clk 0:00:22]} 42. Rc2+ {[%clk 0:00:40]}  Kd5 {[%clk 0:00:22]} 43. g5 {[%clk 0:00:38]}  Rf8 {[%clk 0:00:17]} 44. Kf2 {[%clk 0:00:37]}  Rf5 {[%clk 0:00:17]} 45. Rg1 {[%clk 0:00:35]}  d3 {[%clk 0:00:17]} 46. Rc8 {[%clk 0:00:33]}  d2 {[%clk 0:00:12]} 47. h6 {[%clk 0:00:32]}  Nd4 {[%clk 0:00:12]} 48. h7 {[%clk 0:00:27]}  Rxf3+ {[%clk 0:00:12]} 49. Kg2 {[%clk 0:00:26]}  Re3 {[%clk 0:00:11]} 50. h8=Q {[%clk 0:00:20]}  Re2+ {[%clk 0:00:11]} 51. Kg3 {[%clk 0:00:19]}  Re3+ {[%clk 0:00:10]} 52. Kg4 {[%clk 0:00:18]}  Re4+ {[%clk 0:00:10]} 53. Kg3 {[%clk 0:00:18]}  Ne2+ {[%clk 0:00:10]} 54. Kf2 {[%clk 0:00:17]}  Nxg1 {[%clk 0:00:09]} 55. Rd8+ {[%clk 0:00:17]}  Ke6 {[%clk 0:00:04]} 56. Qe8+ {[%clk 0:00:17]}  Kf5 {[%clk 0:00:04]} 57. Qf7+ {[%clk 0:00:14]}  Kg4 {[%clk 0:00:03]} 58. Qd7+ {[%clk 0:00:13]} 1-0


[Site "https://www.chess.com"]

[Event "Titled Tuesday Blitz July 05 Late 2022"]
[White "Kozin, Yuri"]
[Black "Todorovic, Bojan"]
[WhiteFideId "4129920"]
[BlackFideId "917087"]
[WhiteElo "2531"]
[BlackElo "2266"]
[Result "0-1"]
[Round "10"]
[TimeControl "180+1"]
[Date "2022.07.06"]
[WhiteClock "0:00:02"]
[BlackClock "0:00:01"]

1. e4 {[%clk 0:03:00]}  c5 {[%clk 0:02:59]} 2. Nf3 {[%clk 0:03:00]}  e6 {[%clk 0:02:58]} 3. d4 {[%clk 0:03:00]}  cxd4 {[%clk 0:02:57]} 4. Nxd4 {[%clk 0:03:01]}  a6 {[%clk 0:02:57]} 5. Bd3 {[%clk 0:03:01]}  Bc5 {[%clk 0:02:54]} 6. Nb3 {[%clk 0:03:01]}  Be7 {[%clk 0:02:54]} 7. Nc3 {[%clk 0:03:02]}  Nc6 {[%clk 0:02:54]} 8. f4 {[%clk 0:03:02]}  b5 {[%clk 0:02:49]} 9. Be3 {[%clk 0:02:56]}  Bb7 {[%clk 0:02:46]} 10. Qf3 {[%clk 0:02:56]}  d6 {[%clk 0:02:41]} 11. O-O-O {[%clk 0:02:56]}  Qc7 {[%clk 0:02:40]} 12. Kb1 {[%clk 0:02:52]}  b4 {[%clk 0:02:24]} 13. Na4 {[%clk 0:02:49]}  Nf6 {[%clk 0:02:08]} 14. Nb6 {[%clk 0:02:45]}  Rb8 {[%clk 0:02:06]} 15. g4 {[%clk 0:02:43]}  a5 {[%clk 0:01:55]} 16. f5 {[%clk 0:02:24]}  Ne5 {[%clk 0:01:49]} 17. Qg2 {[%clk 0:01:44]}  Nexg4 {[%clk 0:01:19]} 18. Bd4 {[%clk 0:01:36]}  Ne5 {[%clk 0:00:58]} 19. fxe6 {[%clk 0:01:19]}  fxe6 {[%clk 0:00:53]} 20. Nxa5 {[%clk 0:00:54]}  Nxd3 {[%clk 0:00:51]} 21. cxd3 {[%clk 0:00:49]}  e5 {[%clk 0:00:49]} 22. Rc1 {[%clk 0:00:36]}  Qd8 {[%clk 0:00:49]} 23. Be3 {[%clk 0:00:30]}  O-O {[%clk 0:00:42]} 24. Rhg1 {[%clk 0:00:29]}  Rf7 {[%clk 0:00:42]} 25. Nxb7 {[%clk 0:00:20]}  Rxb7 {[%clk 0:00:39]} 26. Nc4 {[%clk 0:00:21]}  Kh8 {[%clk 0:00:31]} 27. Qf2 {[%clk 0:00:15]}  Qe8 {[%clk 0:00:22]} 28. Qc2 {[%clk 0:00:13]}  Rc7 {[%clk 0:00:21]} 29. Bg5 {[%clk 0:00:12]}  Nd7 {[%clk 0:00:17]} 30. Bxe7 {[%clk 0:00:09]}  Qxe7 {[%clk 0:00:18]} 31. Qb3 {[%clk 0:00:10]}  Nc5 {[%clk 0:00:16]} 32. Qd1 {[%clk 0:00:07]}  Ra7 {[%clk 0:00:12]} 33. Ne3 {[%clk 0:00:06]}  Qb7 {[%clk 0:00:09]} 34. Nd5 {[%clk 0:00:04]}  Qa6 {[%clk 0:00:09]} 35. Nxb4 {[%clk 0:00:04]}  Qb5 {[%clk 0:00:10]} 36. a3 {[%clk 0:00:04]}  Rfb7 {[%clk 0:00:09]} 37. Rf1 {[%clk 0:00:04]}  h6 {[%clk 0:00:08]} 38. Rf8+ {[%clk 0:00:03]}  Kh7 {[%clk 0:00:08]} 39. Qf3 {[%clk 0:00:03]}  Qd7 {[%clk 0:00:06]} 40. Qf5+ {[%clk 0:00:02]}  Qxf5 {[%clk 0:00:06]} 41. Rxf5 {[%clk 0:00:03]}  Nb3 {[%clk 0:00:04]} 42. Kc2 {[%clk 0:00:02]}  Nxc1 {[%clk 0:00:04]} 43. Kxc1 {[%clk 0:00:02]}  Rc7+ {[%clk 0:00:04]} 44. Kd2 {[%clk 0:00:03]}  Rf7 {[%clk 0:00:04]} 45. Rh5 {[%clk 0:00:02]}  Rf2+ {[%clk 0:00:03]} 46. Kc3 {[%clk 0:00:02]}  Re2 {[%clk 0:00:03]} 47. Rh3 {[%clk 0:00:02]}  Rc7+ {[%clk 0:00:03]} 48. Kb3 {[%clk 0:00:02]}  Rb7 {[%clk 0:00:03]} 49. a4 {[%clk 0:00:01]}  Rd2 {[%clk 0:00:03]} 50. a5 {[%clk 0:00:01]}  Rd1 {[%clk 0:00:01]} 51. a6 {[%clk 0:00:01]}  Ra7 {[%clk 0:00:02]} 52. Kc4 {[%clk 0:00:01]}  Ra1 {[%clk 0:00:01]} 53. Kb5 {[%clk 0:00:02]}  Rb1 {[%clk 0:00:01]} 0-1


[Site "https://www.chess.com"]

[Event "Titled Tuesday Blitz July 05 Late 2022"]
[White "Ladopoulos, Dimitrios"]
[Black "Sargsyan, Anna M."]
[WhiteFideId "4239580"]
[BlackFideId "13308130"]
[WhiteElo "2195"]
[BlackElo "2271"]
[Result "1-0"]
[Round "10"]
[TimeControl "180+1"]
[Date "2022.07.05"]
[WhiteClock "0:00:01"]
[BlackClock "0:00:02"]

1. Nf3 {[%clk 0:03:00]}  d5 {[%clk 0:02:59]} 2. d4 {[%clk 0:02:57]}  Nf6 {[%clk 0:03:00]} 3. c4 {[%clk 0:02:56]}  c6 {[%clk 0:03:00]} 4. e3 {[%clk 0:02:54]}  Bg4 {[%clk 0:03:00]} 5. Nc3 {[%clk 0:02:54]}  e6 {[%clk 0:03:00]} 6. h3 {[%clk 0:02:54]}  Bxf3 {[%clk 0:03:00]} 7. Qxf3 {[%clk 0:02:55]}  Nbd7 {[%clk 0:03:00]} 8. Bd3 {[%clk 0:02:54]}  Bb4 {[%clk 0:03:00]} 9. Bd2 {[%clk 0:02:54]}  O-O {[%clk 0:02:59]} 10. O-O {[%clk 0:02:54]}  Re8 {[%clk 0:02:52]} 11. a3 {[%clk 0:02:46]}  Ba5 {[%clk 0:02:52]} 12. b4 {[%clk 0:02:46]}  Bc7 {[%clk 0:02:53]} 13. Rad1 {[%clk 0:02:31]}  Nf8 {[%clk 0:02:45]} 14. Bc1 {[%clk 0:02:21]}  Ng6 {[%clk 0:02:33]} 15. Rfe1 {[%clk 0:02:03]}  Nh4 {[%clk 0:02:04]} 16. Qe2 {[%clk 0:01:59]}  Qd6 {[%clk 0:02:02]} 17. g3 {[%clk 0:01:51]}  Nf5 {[%clk 0:02:03]} 18. Qf3 {[%clk 0:01:45]}  Ne7 {[%clk 0:01:41]} 19. Kg2 {[%clk 0:01:02]}  Ng6 {[%clk 0:01:39]} 20. h4 {[%clk 0:00:58]}  a5 {[%clk 0:00:58]} 21. h5 {[%clk 0:00:39]}  Nh4+ {[%clk 0:00:23]} 22. gxh4 {[%clk 0:00:37]}  Qh2+ {[%clk 0:00:24]} 23. Kf1 {[%clk 0:00:37]}  axb4 {[%clk 0:00:24]} 24. axb4 {[%clk 0:00:35]}  e5 {[%clk 0:00:23]} 25. cxd5 {[%clk 0:00:31]}  cxd5 {[%clk 0:00:15]} 26. Nxd5 {[%clk 0:00:21]}  Nxd5 {[%clk 0:00:13]} 27. Qxd5 {[%clk 0:00:22]}  Rad8 {[%clk 0:00:06]} 28. Qg2 {[%clk 0:00:20]}  Qxh4 {[%clk 0:00:06]} 29. dxe5 {[%clk 0:00:19]}  Bxe5 {[%clk 0:00:06]} 30. Be4 {[%clk 0:00:17]}  Bc3 {[%clk 0:00:06]} 31. Qf3 {[%clk 0:00:08]}  Bxe1 {[%clk 0:00:05]} 32. Rxd8 {[%clk 0:00:07]}  Qxd8 {[%clk 0:00:02]} 33. Kxe1 {[%clk 0:00:07]}  Qe7 {[%clk 0:00:03]} 34. Bd3 {[%clk 0:00:04]}  Qxb4+ {[%clk 0:00:04]} 35. Bd2 {[%clk 0:00:03]}  Qb2 {[%clk 0:00:03]} 36. Ke2 {[%clk 0:00:03]}  Rd8 {[%clk 0:00:03]} 37. Qe4 {[%clk 0:00:03]}  h6 {[%clk 0:00:02]} 38. Qh7+ {[%clk 0:00:02]}  Kf8 {[%clk 0:00:03]} 39. Qe4 {[%clk 0:00:02]}  Qb6 {[%clk 0:00:02]} 40. Bb4+ {[%clk 0:00:01]} 1-0


[Site "https://www.chess.com"]

[Event "Titled Tuesday Blitz July 05 Late 2022"]
[White "Martin Carmona, Gaston Manuel"]
[Black "Averjanov, Alexey"]
[WhiteFideId "22284567"]
[BlackFideId "14109867"]
[WhiteElo "2162"]
[BlackElo "2689"]
[Result "0-1"]
[Round "10"]
[TimeControl "180+1"]
[Date "2022.07.05"]
[WhiteClock "0:00:38"]
[BlackClock "0:00:38"]

1. e4 {[%clk 0:02:49]}  c6 {[%clk 0:02:59]} 2. d3 {[%clk 0:02:46]}  d5 {[%clk 0:03:00]} 3. Nd2 {[%clk 0:02:47]}  e5 {[%clk 0:03:00]} 4. Ngf3 {[%clk 0:02:48]}  Bd6 {[%clk 0:03:00]} 5. Qe2 {[%clk 0:02:47]}  Nf6 {[%clk 0:02:56]} 6. exd5 {[%clk 0:02:46]}  cxd5 {[%clk 0:02:48]} 7. Nxe5 {[%clk 0:02:37]}  O-O {[%clk 0:02:48]} 8. d4 {[%clk 0:02:36]}  Nc6 {[%clk 0:02:47]} 9. Ndf3 {[%clk 0:02:34]}  Re8 {[%clk 0:02:43]} 10. Bf4 {[%clk 0:02:31]}  Bg4 {[%clk 0:02:43]} 11. O-O-O {[%clk 0:02:28]}  Qa5 {[%clk 0:02:33]} 12. Kb1 {[%clk 0:02:25]}  Rac8 {[%clk 0:02:29]} 13. Qb5 {[%clk 0:02:17]}  Qc7 {[%clk 0:02:24]} 14. Qb3 {[%clk 0:02:03]}  Bxf3 {[%clk 0:02:11]} 15. gxf3 {[%clk 0:01:54]}  Nxe5 {[%clk 0:02:10]} 16. dxe5 {[%clk 0:01:55]}  Bxe5 {[%clk 0:02:11]} 17. Bxe5 {[%clk 0:01:55]}  Qxe5 {[%clk 0:02:10]} 18. Bd3 {[%clk 0:01:55]}  Qf4 {[%clk 0:02:07]} 19. Qxb7 {[%clk 0:01:51]}  Qxf3 {[%clk 0:02:05]} 20. Qxa7 {[%clk 0:01:49]}  g6 {[%clk 0:01:54]} 21. Qd4 {[%clk 0:01:46]}  Kg7 {[%clk 0:01:52]} 22. h4 {[%clk 0:01:43]}  h5 {[%clk 0:01:51]} 23. Rhg1 {[%clk 0:01:41]}  Re6 {[%clk 0:01:47]} 24. a4 {[%clk 0:01:41]}  Kh7 {[%clk 0:01:35]} 25. Rde1 {[%clk 0:01:31]}  Ne4 {[%clk 0:01:25]} 26. a5 {[%clk 0:00:53]}  Rce8 {[%clk 0:01:16]} 27. Re2 {[%clk 0:00:47]}  Qf4 {[%clk 0:01:00]} 28. Qe3 {[%clk 0:00:37]}  Nc3+ {[%clk 0:00:56]} 29. bxc3 {[%clk 0:00:37]}  Rxe3 {[%clk 0:00:56]} 30. fxe3 {[%clk 0:00:37]}  Rxe3 {[%clk 0:00:56]} 31. Rxe3 {[%clk 0:00:38]}  Qxe3 {[%clk 0:00:57]} 32. Rf1 {[%clk 0:00:38]}  f5 {[%clk 0:00:51]} 33. a6 {[%clk 0:00:39]}  Kh6 {[%clk 0:00:47]} 34. Kb2 {[%clk 0:00:39]}  f4 {[%clk 0:00:45]} 35. Ra1 {[%clk 0:00:38]}  Qb6+ {[%clk 0:00:43]} 36. Kc1 {[%clk 0:00:38]}  Qa7 {[%clk 0:00:43]} 37. Kd2 {[%clk 0:00:38]}  Qe3+ {[%clk 0:00:38]} 38. Kd1 {[%clk 0:00:38]}  Qg1+ {[%clk 0:00:38]} 0-1


[Site "https://www.chess.com"]

[Event "Titled Tuesday Blitz July 05 Late 2022"]
[White "Melikyan, Gnel"]
[Black "Eljanov, Pavel"]
[WhiteFideId "54109990"]
[BlackFideId "14102951"]
[WhiteElo "1772"]
[BlackElo "2601"]
[Result "0-1"]
[Round "10"]
[TimeControl "180+1"]
[Date "2022.07.05"]
[WhiteClock "0:00:24"]
[BlackClock "0:00:37"]

1. e4 {[%clk 0:03:00]}  c6 {[%clk 0:03:00]} 2. d4 {[%clk 0:03:00]}  d5 {[%clk 0:03:00]} 3. f3 {[%clk 0:03:00]}  e6 {[%clk 0:03:00]} 4. Nc3 {[%clk 0:03:01]}  Bb4 {[%clk 0:02:59]} 5. Bf4 {[%clk 0:03:01]}  Nf6 {[%clk 0:02:58]} 6. Qd3 {[%clk 0:03:02]}  b6 {[%clk 0:02:55]} 7. Ne2 {[%clk 0:03:02]}  Ba6 {[%clk 0:02:55]} 8. Qe3 {[%clk 0:03:02]}  O-O {[%clk 0:02:52]} 9. O-O-O {[%clk 0:03:02]}  Nbd7 {[%clk 0:02:48]} 10. g4 {[%clk 0:03:00]}  dxe4 {[%clk 0:02:30]} 11. fxe4 {[%clk 0:02:59]}  Qe7 {[%clk 0:02:11]} 12. Bg2 {[%clk 0:02:49]}  e5 {[%clk 0:02:09]} 13. dxe5 {[%clk 0:02:47]}  Nxe5 {[%clk 0:02:09]} 14. h3 {[%clk 0:02:46]}  Nc4 {[%clk 0:02:02]} 15. Qg3 {[%clk 0:02:42]}  Ba3 {[%clk 0:02:02]} 16. Kb1 {[%clk 0:02:31]}  Bxb2 {[%clk 0:01:58]} 17. Bd6 {[%clk 0:02:19]}  Nxd6 {[%clk 0:01:56]} 18. Qxd6 {[%clk 0:02:19]}  Qxd6 {[%clk 0:01:38]} 19. Rxd6 {[%clk 0:02:19]}  Ba3 {[%clk 0:01:33]} 20. Rxc6 {[%clk 0:02:12]}  Nd7 {[%clk 0:01:22]} 21. e5 {[%clk 0:01:47]}  Bb7 {[%clk 0:01:22]} 22. Be4 {[%clk 0:01:29]}  Bxc6 {[%clk 0:01:18]} 23. Bxc6 {[%clk 0:01:29]}  Rad8 {[%clk 0:01:18]} 24. e6 {[%clk 0:01:21]}  fxe6 {[%clk 0:01:17]} 25. Nd4 {[%clk 0:01:21]}  Ne5 {[%clk 0:01:14]} 26. Ncb5 {[%clk 0:01:12]}  a6 {[%clk 0:01:08]} 27. Nxe6 {[%clk 0:01:06]}  axb5 {[%clk 0:01:05]} 28. Nxd8 {[%clk 0:01:04]}  Rxd8 {[%clk 0:01:04]} 29. Bxb5 {[%clk 0:01:04]}  Rd5 {[%clk 0:01:01]} 30. Ba4 {[%clk 0:01:01]}  Rd4 {[%clk 0:00:56]} 31. Bb3+ {[%clk 0:00:57]}  Kf8 {[%clk 0:00:56]} 32. Re1 {[%clk 0:00:54]}  Nc4 {[%clk 0:00:48]} 33. c3 {[%clk 0:00:51]}  Rf4 {[%clk 0:00:48]} 34. Kc2 {[%clk 0:00:50]}  Bc5 {[%clk 0:00:47]} 35. Kd3 {[%clk 0:00:46]}  Nd6 {[%clk 0:00:46]} 36. Bd5 {[%clk 0:00:44]}  g6 {[%clk 0:00:44]} 37. Bg2 {[%clk 0:00:36]}  Rf2 {[%clk 0:00:43]} 38. Bd5 {[%clk 0:00:35]}  Rh2 {[%clk 0:00:42]} 39. Rh1 {[%clk 0:00:32]}  Rxh1 {[%clk 0:00:40]} 40. Bxh1 {[%clk 0:00:32]}  Ke7 {[%clk 0:00:41]} 41. a4 {[%clk 0:00:30]}  Kf6 {[%clk 0:00:41]} 42. h4 {[%clk 0:00:28]}  Ke5 {[%clk 0:00:41]} 43. Bc6 {[%clk 0:00:25]}  Kf4 {[%clk 0:00:40]} 44. Bd7 {[%clk 0:00:24]}  Nf7 {[%clk 0:00:37]} 0-1


[Site "https://www.chess.com"]

[Event "Titled Tuesday Blitz July 05 Late 2022"]
[White "Mikhalsky, Vladimir"]
[Black "Souleidis, Georgios"]
[WhiteFideId "14144352"]
[BlackFideId "4206827"]
[WhiteElo "2301"]
[BlackElo "2401"]
[Result "1-0"]
[Round "10"]
[TimeControl "180+1"]
[Date "2022.07.06"]
[WhiteClock "0:00:15"]
[BlackClock "0:00:05"]

1. c4 {[%clk 0:02:56]}  e5 {[%clk 0:02:59]} 2. Nc3 {[%clk 0:02:54]}  Nc6 {[%clk 0:02:59]} 3. g3 {[%clk 0:02:53]}  Bc5 {[%clk 0:02:59]} 4. Bg2 {[%clk 0:02:54]}  a6 {[%clk 0:02:58]} 5. e3 {[%clk 0:02:54]}  d6 {[%clk 0:02:57]} 6. Nge2 {[%clk 0:02:54]}  Ba7 {[%clk 0:02:57]} 7. O-O {[%clk 0:02:54]}  h5 {[%clk 0:02:57]} 8. d4 {[%clk 0:02:43]}  h4 {[%clk 0:02:56]} 9. Bxc6+ {[%clk 0:02:28]}  bxc6 {[%clk 0:02:56]} 10. dxe5 {[%clk 0:02:28]}  hxg3 {[%clk 0:02:56]} 11. hxg3 {[%clk 0:02:24]}  Qg5 {[%clk 0:02:28]} 12. Kg2 {[%clk 0:02:09]}  Bh3+ {[%clk 0:02:25]} 13. Kg1 {[%clk 0:02:05]}  Bg4 {[%clk 0:02:19]} 14. f4 {[%clk 0:01:54]}  Qh5 {[%clk 0:02:02]} 15. Kf2 {[%clk 0:01:51]}  dxe5 {[%clk 0:01:57]} 16. Ke1 {[%clk 0:01:32]}  exf4 {[%clk 0:01:37]} 17. gxf4 {[%clk 0:01:16]}  Qh4+ {[%clk 0:01:33]} 18. Rf2 {[%clk 0:01:08]}  Nf6 {[%clk 0:01:08]} 19. Qa4 {[%clk 0:01:05]}  O-O {[%clk 0:01:02]} 20. Qxc6 {[%clk 0:01:04]}  Rae8 {[%clk 0:00:40]} 21. c5 {[%clk 0:01:04]}  Bd7 {[%clk 0:00:25]} 22. Qxc7 {[%clk 0:00:59]}  Bb8 {[%clk 0:00:25]} 23. Qb7 {[%clk 0:00:53]}  Ng4 {[%clk 0:00:25]} 24. Qf3 {[%clk 0:00:47]}  Bc6 {[%clk 0:00:23]} 25. e4 {[%clk 0:00:46]}  Nxf2 {[%clk 0:00:22]} 26. Qxf2 {[%clk 0:00:46]}  Qh1+ {[%clk 0:00:21]} 27. Qf1 {[%clk 0:00:44]}  Qh4+ {[%clk 0:00:22]} 28. Qf2 {[%clk 0:00:44]}  Qh1+ {[%clk 0:00:21]} 29. Qf1 {[%clk 0:00:44]}  Bxe4 {[%clk 0:00:20]} 30. Qxh1 {[%clk 0:00:42]}  Bxh1 {[%clk 0:00:21]} 31. Kf2 {[%clk 0:00:40]}  Bc6 {[%clk 0:00:21]} 32. Nd4 {[%clk 0:00:36]}  Ba8 {[%clk 0:00:21]} 33. Be3 {[%clk 0:00:33]}  Rc8 {[%clk 0:00:20]} 34. b4 {[%clk 0:00:33]}  Rfe8 {[%clk 0:00:21]} 35. a3 {[%clk 0:00:31]}  Rcd8 {[%clk 0:00:21]} 36. Rd1 {[%clk 0:00:26]}  Re7 {[%clk 0:00:15]} 37. Nf5 {[%clk 0:00:25]}  Ree8 {[%clk 0:00:14]} 38. Ne7+ {[%clk 0:00:23]}  Kf8 {[%clk 0:00:14]} 39. Ned5 {[%clk 0:00:22]}  Bxd5 {[%clk 0:00:12]} 40. Nxd5 {[%clk 0:00:21]}  Rc8 {[%clk 0:00:09]} 41. Nb6 {[%clk 0:00:20]}  Rcd8 {[%clk 0:00:09]} 42. Nd7+ {[%clk 0:00:20]}  Ke7 {[%clk 0:00:08]} 43. c6 {[%clk 0:00:20]}  Bc7 {[%clk 0:00:08]} 44. Bc5+ {[%clk 0:00:20]}  Ke6 {[%clk 0:00:08]} 45. Re1+ {[%clk 0:00:20]}  Kf5 {[%clk 0:00:08]} 46. Rg1 {[%clk 0:00:17]}  Bxf4 {[%clk 0:00:06]} 47. Rxg7 {[%clk 0:00:17]}  Rc8 {[%clk 0:00:07]} 48. Rxf7+ {[%clk 0:00:17]}  Ke4 {[%clk 0:00:07]} 49. Nf6+ {[%clk 0:00:16]}  Kf5 {[%clk 0:00:06]} 50. Nxe8+ {[%clk 0:00:16]}  Ke6 {[%clk 0:00:05]} 51. Rxf4 {[%clk 0:00:14]}  Rxe8 {[%clk 0:00:05]} 52. Re4+ {[%clk 0:00:15]} 1-0


[Site "https://www.chess.com"]